bitfinex-derivatives/quotes_BTCF0:USTF0_20250416
["timestamp","ask_amount","ask_price","bid_price","bid_amount"]
[1744785410325,0.05988311,83654.0,83653.0,0.119551]
[1744785410524,0.05988311,83654.0,83653.0,0.480351]
[1744785410725,0.0597751,83654.0,83653.0,0.510851]
[1744785410930,0.0905551,83654.0,83653.0,0.510851]
[1744785411140,0.0905551,83654.0,83653.0,0.52001799]
[1744785411734,0.1231551,83654.0,83653.0,0.55301799]
[1744785412037,0.1231551,83654.0,83653.0,0.52351799]
[1744785412227,0.1231551,83654.0,83653.0,0.52451799]
[1744785412736,0.1231551,83654.0,83653.0,0.52251799]
[1744785415139,0.005,83656.0,83655.0,0.1195481]
[1744785415343,0.005,83656.0,83655.0,0.1826481]
[1744785415541,0.032,83659.0,83658.0,0.1195438]
[1744785415833,0.06268,83659.0,83658.0,0.4803438]
[1744785416039,0.06268,83659.0,83658.0,0.5433438]
[1744785416237,0.03270801,83664.0,83663.0,0.1195367]
[1744785416439,0.00010801,83664.0,83663.0,0.5641367]
[1744785416627,0.0326,83674.0,83673.0,0.1195224]
[1744785416826,0.1521209,83674.0,83673.0,0.4803224]
[1744785417027,0.0326,83674.0,83673.0,0.4803224]
[1744785417227,0.11966531,83675.0,83674.0,0.1195209]
[1744785417538,0.11966531,83675.0,83674.0,0.1844209]
[1744785417730,0.1195195,83675.0,83674.0,0.1844209]
[1744785417930,0.1195995,83675.0,83674.0,0.1844209]
[1744785418126,8e-05,83675.0,83674.0,0.1844209]
[1744785418330,0.11961941,83681.0,83680.0,0.1195124]
[1744785418531,0.15271941,83681.0,83680.0,0.4803124]
[1744785418731,0.1526114,83681.0,83680.0,0.4803124]
[1744785418935,0.1526914,83681.0,83680.0,0.4803124]
[1744785419633,0.1857914,83681.0,83680.0,0.4803124]
[1744785419831,0.1857914,83681.0,83680.0,0.3608]
[1744785420135,0.1195238,83672.0,83671.0,0.033]
[1744785420438,0.1195238,83672.0,83669.0,0.0838]
[1744785420439,0.1195267,83670.0,83669.0,0.0838]
[1744785420638,0.1195309,83667.0,83666.0,0.00017936]
[1744785421131,0.1195452,83657.0,83656.0,0.3608]
[1744785422042,0.1195452,83657.0,83656.0,0.4803467]
[1744785422340,0.1512452,83657.0,83656.0,0.4803467]
[1744785422541,0.1815452,83657.0,83656.0,0.4803467]
[1744785423438,8e-05,83681.0,83662.0,0.0597683]
[1744785423740,0.1512367,83664.0,83663.0,0.1512367]
[1744785423934,0.1815367,83664.0,83663.0,0.5120367]
[1744785424334,0.2119367,83664.0,83663.0,0.5120367]
[1744785428447,0.2119367,83664.0,83663.0,0.3925]
[1744785428743,0.2119367,83664.0,83663.0,0.3608]
[1744785428930,0.4619367,83664.0,83663.0,0.3608]
[1744785429531,0.1195452,83657.0,83656.0,0.3608]
[1744785430430,0.1818452,83657.0,83656.0,0.3608]
[1744785431841,0.1512452,83657.0,83656.0,0.4803467]
[1744785432330,0.1513252,83657.0,83656.0,0.4803467]
[1744785432531,0.1195452,83657.0,83656.0,0.5107467]
[1744785432731,0.1195452,83657.0,83656.0,0.3912]
[1744785433130,0.1195452,83657.0,83656.0,0.5107467]
[1744785435548,0.03050801,83664.0,83661.0,0.0597691]
[1744785435746,0.1499352,83664.0,83663.0,0.4803367]
[1744785435945,0.1500152,83664.0,83663.0,0.3608]
[1744785436245,0.1817152,83664.0,83663.0,0.3608]
[1744785437337,0.2075152,83664.0,83663.0,0.3608]
[1744785440042,0.1817152,83664.0,83663.0,0.3608]
[1744785440245,0.1500152,83664.0,83663.0,0.4803367]
[1744785441151,0.1196152,83664.0,83663.0,0.4803367]
[1744785441845,0.1196152,83664.0,83663.0,0.3608]
[1744785442252,0.1196152,83664.0,83663.0,0.4803367]
[1744785442848,0.1196152,83664.0,83663.0,0.3608]
[1744785444153,0.1793835,83664.0,83663.0,0.4803367]
[1744785445241,0.1793835,83664.0,83663.0,0.3608]
[1744785445954,0.1793835,83664.0,83663.0,0.4803367]
[1744785450154,0.1793835,83664.0,83663.0,0.1195367]
[1744785450355,0.1793835,83664.0,83663.0,0.4803367]
[1744785451050,0.1793835,83664.0,83663.0,0.1195367]
[1744785451256,0.1793835,83664.0,83663.0,0.3608]
[1744785451650,0.2382835,83664.0,83663.0,0.3608]
[1744785460654,0.1195567,83649.0,83648.0,0.00017925]
[1744785461056,0.1850567,83649.0,83648.0,0.00017925]
[1744785461365,0.1850567,83649.0,83634.0,0.08364]
[1744785461366,0.1195767,83635.0,83634.0,0.08364]
[1744785462050,0.1195781,83634.0,83633.0,0.0306]
[1744785462460,0.13164499,83634.0,83633.0,0.0306]
[1744785462656,0.18744499,83634.0,83633.0,0.0306]
[1744785464059,0.1195867,83628.0,83625.0,0.00017925]
[1744785464251,0.4803867,83628.0,83625.0,0.00017925]
[1744785464856,0.1195896,83626.0,83625.0,0.00017925]
[1744785465550,0.1772896,83626.0,83625.0,0.00017925]
[1744785470960,0.1195896,83626.0,83625.0,0.00017925]
[1744785471766,0.1196696,83626.0,83625.0,0.00017925]
[1744785472260,0.1206696,83626.0,83625.0,0.00017925]
[1744785472661,0.1205896,83626.0,83625.0,0.00017925]
[1744785472861,0.1537696,83626.0,83625.0,0.00017925]
[1744785473168,0.1547696,83626.0,83625.0,0.00017925]
[1744785473358,0.1537696,83626.0,83625.0,0.00017925]
[1744785473553,0.1547696,83626.0,83625.0,0.00017925]
[1744785473760,0.1567696,83626.0,83625.0,0.00017925]
[1744785474362,0.1236696,83626.0,83625.0,0.00017925]
[1744785474855,0.1226696,83626.0,83625.0,0.00017925]
[1744785475056,0.1216696,83626.0,83625.0,0.00017925]
[1744785475262,0.1236696,83626.0,83625.0,0.00017925]
[1744785475860,0.1216696,83626.0,83625.0,0.00017925]
[1744785476059,0.1226696,83626.0,83625.0,0.00017925]
[1744785476255,0.1225896,83626.0,83625.0,0.00017925]
[1744785476460,0.1226696,83626.0,83625.0,0.00017925]
[1744785476864,0.1206696,83626.0,83625.0,0.00017925]
[1744785477163,0.1216696,83626.0,83625.0,0.00017925]
[1744785478157,0.1206696,83626.0,83625.0,0.00017925]
[1744785478361,0.1216696,83626.0,83625.0,0.00017925]
[1744785481762,0.1206696,83626.0,83625.0,0.00017925]
[1744785481955,0.1216696,83626.0,83625.0,0.00017925]
[1744785482665,0.1854696,83626.0,83625.0,0.00017925]
[1744785482859,0.1844696,83626.0,83625.0,0.00017925]
[1744785483059,0.1854696,83626.0,83625.0,0.00017925]
[1744785483255,0.1532696,83626.0,83625.0,0.00017925]
[1744785483459,0.1216696,83626.0,83625.0,0.00017925]
[1744785484462,0.1236696,83626.0,83625.0,0.00017925]
[1744785485469,0.1246696,83626.0,83625.0,0.00017925]
[1744785485666,0.1245896,83626.0,83625.0,0.00017925]
[1744785485861,0.1246696,83626.0,83625.0,0.00017925]
[1744785486055,0.1216696,83626.0,83625.0,0.00017925]
[1744785486261,0.1226696,83626.0,83625.0,0.00017925]
[1744785486661,0.1225896,83626.0,83625.0,0.00017925]
[1744785486861,0.1226696,83626.0,83625.0,0.00017925]
[1744785488659,0.1225896,83626.0,83625.0,0.00017925]
[1744785488867,0.1226696,83626.0,83625.0,0.00017925]
[1744785492378,0.1226696,83626.0,83625.0,0.11977025]
[1744785492562,0.1226696,83626.0,83625.0,0.18417025]
[1744785494177,0.1205896,83626.0,83625.0,0.18417025]
[1744785494378,0.1226696,83626.0,83625.0,0.18417025]
[1744785495169,0.00308,83626.0,83625.0,0.18417025]
[1744785495370,0.1226696,83626.0,83625.0,0.18417025]
[1744785495568,0.1225896,83626.0,83625.0,0.18417025]
[1744785495775,0.00308,83626.0,83625.0,0.18417025]
[1744785496070,0.003,83626.0,83625.0,0.18417025]
[1744785496271,0.1226696,83626.0,83625.0,0.18417025]
[1744785497075,0.003,83626.0,83625.0,0.18417025]
[1744785497275,0.00108,83626.0,83625.0,0.18417025]
[1744785497972,0.0597861,83639.0,83638.0,0.119571]
[1744785498277,0.0597861,83639.0,83638.0,0.841171]
[1744785498482,0.0598661,83639.0,83638.0,0.841171]
[1744785498777,0.0598661,83639.0,83638.0,0.938571]
[1744785499381,0.0618661,83639.0,83638.0,0.938571]
[1744785499582,0.0618661,83639.0,83638.0,0.940571]
[1744785499781,0.00208,83639.0,83638.0,0.940571]
[1744785500071,0.121651,83639.0,83638.0,0.940571]
[1744785500277,0.119651,83639.0,83638.0,0.941571]
[1744785500865,8e-05,83639.0,83638.0,0.941571]
[1744785501274,0.119651,83639.0,83638.0,0.941571]
[1744785502371,8e-05,83639.0,83638.0,0.941571]
[1744785502567,8e-05,83639.0,83638.0,0.940571]
[1744785502771,8e-05,83639.0,83638.0,0.941571]
[1744785502969,8e-05,83639.0,83638.0,0.942571]
[1744785503681,8e-05,83639.0,83638.0,0.941571]
[1744785503983,0.00017925,83642.0,83641.0,0.1195681]
[1744785504275,0.11966181,83651.0,83650.0,0.1195552]
[1744785504465,0.11966181,83651.0,83650.0,0.4803552]
[1744785504672,0.1195538,83651.0,83650.0,0.4803552]
[1744785504871,0.1195538,83651.0,83650.0,0.5421552]
[1744785505070,0.1196338,83651.0,83650.0,0.5421552]
[1744785506175,0.00208,83651.0,83650.0,0.5421552]
[1744785506567,0.002,83651.0,83650.0,0.5421552]
[1744785507091,0.1215538,83651.0,83650.0,0.55384189]
[1744785507375,0.1216338,83651.0,83650.0,0.55384189]
[1744785507575,0.1216338,83651.0,83650.0,0.63724189]
[1744785507977,0.1216338,83651.0,83650.0,0.6255552]
[1744785508366,0.1216338,83651.0,83650.0,0.64140006]
[1744785512072,0.1216338,83651.0,83650.0,1.00220006]
[1744785518074,0.1215538,83651.0,83650.0,0.9863552]
[1744785518475,0.1216338,83651.0,83650.0,0.9863552]
[1744785520381,0.1206338,83651.0,83650.0,0.9873552]
[1744785521389,0.1196338,83651.0,83650.0,0.9903552]
[1744785522877,0.1196338,83651.0,83650.0,0.9913552]
[1744785524787,0.1196338,83651.0,83650.0,0.2707552]
[1744785524982,0.1196338,83651.0,83650.0,0.9923552]
[1744785525380,0.1196338,83651.0,83650.0,1.00806878]
[1744785525583,0.1828338,83651.0,83650.0,1.00806878]
[1744785525781,0.1828338,83651.0,83650.0,1.00802878]
[1744785526786,0.1828338,83651.0,83650.0,0.97532878]
[1744785526991,0.1828338,83651.0,83650.0,0.85577358]
[1744785527191,0.1828338,83651.0,83650.0,0.38151358]
[1744785527687,0.1828338,83651.0,83650.0,0.37951358]
[1744785528789,0.19473292,83651.0,83650.0,0.38051358]
[1744785529089,0.1828338,83651.0,83650.0,0.37951358]
[1744785529393,0.1828338,83651.0,83650.0,0.38051358]
[1744785529582,0.1828338,83651.0,83650.0,0.3648]
[1744785530786,0.1828338,83651.0,83650.0,0.3618]
[1744785530981,0.1838338,83651.0,83650.0,0.3618]
[1744785531381,0.1848338,83651.0,83650.0,0.3608]
[1744785531582,0.1858338,83651.0,83650.0,0.3608]
[1744785535694,0.1848338,83651.0,83650.0,0.3608]
[1744785535893,0.1858338,83651.0,83650.0,0.3608]
[1744785536491,0.1195652,83643.0,83637.0,0.3608]
[1744785536990,0.2140652,83643.0,83637.0,0.3608]
[1744785537994,0.2140652,83643.0,83642.0,0.00117937]
[1744785540599,0.5748652,83643.0,83642.0,0.00117937]
[1744785540793,0.5748652,83643.0,83642.0,0.00017937]
[1744785540989,0.5778652,83643.0,83642.0,0.00017937]
[1744785549015,0.119591,83625.0,83615.0,0.44404]
[1744785549195,0.119591,83625.0,83617.0,0.0322]
[1744785550309,0.151491,83625.0,83618.0,0.0313]
[1744785550908,0.151491,83625.0,83620.0,0.1195981]
[1744785551110,0.119591,83625.0,83624.0,0.3638]
[1744785551812,0.119591,83625.0,83624.0,0.3648]
[1744785552708,0.119591,83625.0,83624.0,0.004]
[1744785555114,0.119671,83625.0,83624.0,0.004]
[1744785558317,0.119671,83625.0,83624.0,0.1235924]
[1744785558705,0.119591,83625.0,83624.0,0.1856924]
[1744785558907,0.119671,83625.0,83624.0,0.1856924]
[1744785559912,0.119671,83625.0,83624.0,0.0661]
[1744785563112,0.480471,83625.0,83624.0,0.0661]
[1744785564014,0.119671,83625.0,83624.0,0.0661]
[1744785564210,0.480471,83625.0,83624.0,0.0661]
[1744785565617,0.119671,83625.0,83624.0,0.0661]
[1744785565819,0.119671,83625.0,83624.0,0.1856924]
[1744785566210,0.119591,83625.0,83624.0,0.1856924]
[1744785566605,0.119671,83625.0,83624.0,0.1856924]
[1744785567019,0.119671,83625.0,83624.0,0.20160225]
[1744785579226,8e-05,83625.0,83624.0,0.20160225]
[1744785579623,0.119671,83625.0,83624.0,0.20160225]
[1744785580226,0.119671,83625.0,83624.0,0.28468225]
[1744785583822,0.119671,83625.0,83624.0,0.31568225]
[1744785592234,0.119671,83625.0,83624.0,0.28468225]
[1744785592429,0.151371,83625.0,83624.0,0.28468225]
[1744785592624,0.184571,83625.0,83624.0,0.28468225]
[1744785592825,0.184571,83625.0,83624.0,0.13388985]
[1744785593321,0.184571,83625.0,83624.0,0.05080985]
[1744785593520,0.184571,83625.0,83624.0,0.17040225]
[1744785594434,0.184571,83625.0,83624.0,0.20330225]
[1744785603338,0.151371,83625.0,83624.0,0.20330225]
[1744785603735,0.151291,83625.0,83624.0,0.20330225]
[1744785603930,0.151371,83625.0,83624.0,0.20330225]
[1744785604137,0.119671,83625.0,83624.0,0.20330225]
[1744785605632,0.119591,83625.0,83624.0,0.20330225]
[1744785605834,0.119671,83625.0,83624.0,0.20330225]
[1744785607646,0.23934117,83633.0,83632.0,0.119581]
[1744785608333,0.23934117,83633.0,83632.0,0.182081]
[1744785608534,0.23934117,83633.0,83632.0,0.19799085]
[1744785608938,0.27194117,83633.0,83632.0,0.07840985]
[1744785609136,0.27194117,83633.0,83632.0,0.07940985]
[1744785609331,0.30404117,83633.0,83632.0,0.07940985]
[1744785610238,0.30404117,83633.0,83632.0,0.0635]
[1744785612930,0.30404117,83633.0,83632.0,0.0319]
[1744785613130,0.30404117,83633.0,83632.0,0.001]
[1744785615548,0.11976017,83633.0,83632.0,0.120581]
[1744785615851,0.11984017,83633.0,83632.0,0.120581]
[1744785616158,0.11976017,83633.0,83632.0,0.20053048]
[1744785616445,0.11984017,83633.0,83632.0,0.20053048]
[1744785622949,0.11984017,83633.0,83632.0,0.08094948]
[1744785623848,0.11984017,83633.0,83632.0,0.04934948]
[1744785624040,0.11984017,83633.0,83632.0,0.01684948]
[1744785624347,0.15184017,83633.0,83632.0,0.001]
[1744785624748,0.119591,83625.0,83624.0,0.0319]
[1744785624944,0.480391,83625.0,83624.0,0.0319]
[1744785625539,0.541591,83625.0,83624.0,0.0319]
[1744785625736,0.1195981,83620.0,83619.0,0.0327]
[1744785626447,0.1195981,83620.0,83619.0,0.1522996]
[1744785626850,0.1195981,83620.0,83619.0,0.16805759]
[1744785627347,0.1195981,83620.0,83619.0,0.04845799]
[1744785628244,0.1195981,83620.0,83619.0,0.05445799]
[1744785628948,0.1516981,83620.0,83619.0,0.05445799]
[1744785629147,0.1516981,83620.0,83619.0,0.0387]
[1744785632444,0.1195981,83620.0,83619.0,0.0387]
[1744785634547,0.0597983,83622.0,83621.0,0.1195967]
[1744785634748,0.1793892,83625.0,83624.0,0.1195924]
[1744785636053,0.00010801,83631.0,83630.0,0.1195838]
[1744785636248,0.1195824,83631.0,83630.0,0.179375]
[1744785636445,0.1196624,83631.0,83630.0,0.179375]
[1744785636857,8e-05,83631.0,83630.0,0.179375]
[1744785637054,8e-05,83631.0,83630.0,0.20710906]
[1744785637350,0.00017937,83633.0,83632.0,0.119581]
[1744785638052,0.0597849,83640.0,83635.0,0.0597879]
[1744785638254,0.1195712,83639.0,83638.0,0.119571]
[1744785638450,0.1195712,83639.0,83638.0,0.480371]
[1744785638950,0.1195712,83639.0,83638.0,0.49621509]
[1744785639751,0.1205712,83639.0,83638.0,0.49621509]
[1744785640665,0.1205712,83639.0,83638.0,0.49821509]
[1744785641558,0.1205712,83639.0,83638.0,0.482371]
[1744785641952,0.1195712,83639.0,83638.0,0.483371]
[1744785642654,0.1195712,83639.0,83638.0,0.566171]
[1744785642850,0.0597841,83641.0,83640.0,0.1195695]
[1744785644065,0.0597841,83641.0,83640.0,0.1205695]
[1744785644757,0.1250841,83641.0,83640.0,0.1205695]
[1744785645256,0.1250841,83641.0,83640.0,0.1215695]
[1744785645855,0.1250841,83641.0,83640.0,0.1205695]
[1744785646256,0.1250841,83641.0,83640.0,0.1195695]
[1744785646950,0.1250841,83641.0,83640.0,0.1205695]
[1744785650859,0.0920841,83641.0,83640.0,0.1205695]
[1744785651154,0.0597841,83641.0,83640.0,0.1205695]
[1744785652652,0.0597841,83641.0,83640.0,0.1195695]
[1744785652959,0.0597841,83641.0,83640.0,0.1205695]
[1744785653761,0.0597841,83641.0,83640.0,0.1532695]
[1744785654250,0.0597833,83643.0,83642.0,0.1195667]
[1744785654558,0.119561,83646.0,83645.0,0.1195624]
[1744785654747,0.119561,83646.0,83645.0,0.1524624]
[1744785655448,0.119641,83646.0,83645.0,0.1855624]
[1744785656055,8e-05,83646.0,83645.0,0.1855624]
[1744785656361,0.11966321,83652.0,83651.0,0.1195538]
[1744785656659,0.1793314,83652.0,83651.0,0.5629538]
[1744785656960,0.1794114,83652.0,83651.0,0.5629538]
[1744785657150,0.1794114,83652.0,83651.0,0.6277538]
[1744785657356,0.1814114,83652.0,83651.0,0.6277538]
[1744785657661,0.1824114,83652.0,83651.0,0.6277538]
[1744785658061,0.0628562,83652.0,83651.0,0.6277538]
[1744785658265,0.00010801,83660.0,83653.0,0.0597748]
[1744785658557,0.11964891,83660.0,83659.0,0.4803424]
[1744785658750,0.1195409,83660.0,83659.0,0.4803424]
[1744785658949,0.1196209,83660.0,83659.0,0.4803424]
[1744785659157,8e-05,83660.0,83659.0,0.4803424]
[1744785659352,0.00010801,83666.0,83665.0,0.1195338]
[1744785659555,0.11964041,83666.0,83665.0,0.1195338]
[1744785659759,0.1195324,83666.0,83665.0,0.1523338]
[1744785660056,0.1196124,83666.0,83665.0,0.1523338]
[1744785660648,0.1216124,83666.0,83665.0,0.1523338]
[1744785660956,0.00208,83666.0,83665.0,0.16440573]
[1744785661158,8e-05,83666.0,83665.0,0.16540573]
[1744785661358,8e-05,83666.0,83665.0,0.18151338]
[1744785662261,8e-05,83666.0,83665.0,0.21341338]
[1744785662557,8e-05,83666.0,83665.0,0.22233625]
[1744785662949,8e-05,83666.0,83665.0,0.2062286]
[1744785663158,0.1195281,83669.0,83668.0,0.1195295]
[1744785663449,0.1195281,83669.0,83668.0,0.4803295]
[1744785663649,0.0597627,83671.0,83670.0,0.1195267]
[1744785663855,0.0905627,83671.0,83670.0,0.1195267]
[1744785664256,0.0905627,83671.0,83670.0,0.1823267]
[1744785665551,0.0906427,83671.0,83670.0,0.1823267]
[1744785666350,0.1234427,83671.0,83670.0,0.1504267]
[1744785666555,0.1234427,83671.0,83670.0,0.0309]
[1744785666750,0.1234427,83671.0,83670.0,0.1504267]
[1744785672472,0.1196538,83637.0,83636.0,0.60236408]
[1744785674579,0.1196538,83637.0,83636.0,0.51976408]
[1744785674777,0.1196538,83637.0,83636.0,0.40018878]
[1744785675793,0.1196538,83637.0,83636.0,0.03938878]
[1744785677489,0.1196538,83637.0,83636.0,0.15896408]
[1744785681682,0.1195738,83637.0,83636.0,0.15896408]
[1744785681881,0.1196538,83637.0,83636.0,0.15896408]
[1744785685087,0.1196538,83637.0,83636.0,0.18936408]
[1744785687285,0.1196538,83637.0,83636.0,0.55016408]
[1744785689181,0.1496538,83637.0,83636.0,0.43058878]
[1744785689382,0.1195853,83629.0,83628.0,0.00017937]
[1744785689789,0.2187853,83629.0,83628.0,0.00017937]
[1744785690595,0.2187853,83629.0,83628.0,0.03037937]
[1744785690791,0.2187853,83629.0,83628.0,0.03237937]
[1744785690997,0.1856853,83629.0,83628.0,0.18326607]
[1744785691396,0.1856853,83629.0,83628.0,0.18126607]
[1744785691595,0.1527853,83629.0,83628.0,0.19128843]
[1744785691892,0.1528653,83629.0,83628.0,0.19128843]
[1744785692094,0.1527853,83629.0,83628.0,0.19128843]
[1744785692294,0.1528653,83629.0,83628.0,0.19128843]
[1744785692992,8e-05,83629.0,83628.0,0.19128843]
[1744785693198,0.1195804,83637.0,83636.0,0.2391419]
[1744785694597,0.1195804,83637.0,83636.0,0.2989288]
[1744785696890,0.1195804,83637.0,83636.0,0.6597288]
[1744785697594,0.1195804,83637.0,83636.0,0.2989288]
[1744785697800,0.1497804,83637.0,83636.0,0.07574105]
[1744785699197,0.1497804,83637.0,83636.0,0.14014105]
[1744785701100,0.1195804,83637.0,83636.0,0.14014105]
[1744785703998,0.1195804,83637.0,83636.0,0.1519106]
[1744785704192,0.1195804,83637.0,83636.0,0.14014105]
[1744785706003,0.1504804,83637.0,83636.0,0.14014105]
[1744785712509,0.1805804,83637.0,83636.0,0.14014105]
[1744785712811,0.1805804,83637.0,83636.0,0.01595555]
[1744785713598,0.1805804,83637.0,83636.0,0.13553085]
[1744785713808,0.1805804,83637.0,83636.0,0.16673085]
[1744785714008,0.1805804,83637.0,83636.0,0.1507753]
[1744785716904,0.1805804,83637.0,83636.0,0.1517753]
[1744785718903,0.1805804,83637.0,83636.0,0.1847753]
[1744785719912,0.1805804,83637.0,83636.0,0.1837753]
[1744785720214,0.1805804,83637.0,83636.0,0.1847753]
[1744785720606,0.1805804,83637.0,83636.0,0.20045781]
[1744785720931,0.1805804,83637.0,83636.0,0.04788251]
[1744785721105,0.1195795,83633.0,83632.0,0.08248]
[1744785721516,0.1815795,83633.0,83632.0,0.08248]
[1744785722716,0.1815795,83633.0,83632.0,0.202061]
[1744785723311,0.1815795,83633.0,83632.0,0.203061]
[1744785723516,0.1505795,83633.0,83632.0,0.203061]
[1744785723714,0.1505795,83633.0,83632.0,0.267061]
[1744785724615,0.1505795,83633.0,83632.0,0.14648]
[1744785724811,0.1505795,83633.0,83632.0,0.14748]
[1744785726217,0.1505795,83633.0,83632.0,0.14648]
[1744785726419,0.1505795,83633.0,83632.0,0.14748]
[1744785726615,0.1505795,83633.0,83632.0,0.14848]
[1744785727421,0.1505795,83633.0,83632.0,0.14748]
[1744785727821,0.1837795,83633.0,83632.0,0.14748]
[1744785729318,0.1837795,83633.0,83632.0,0.267061]
[1744785730416,0.1527795,83633.0,83632.0,0.267061]
[1744785730615,0.1527795,83633.0,83632.0,0.184581]
[1744785732319,0.1846795,83633.0,83632.0,0.184581]
[1744785732727,0.1846795,83633.0,83632.0,0.065]
[1744785733319,0.2156795,83633.0,83632.0,0.065]
[1744785733820,0.2156795,83633.0,83632.0,0.064]
[1744785734026,0.2156795,83633.0,83632.0,0.065]
[1744785736025,0.5764795,83633.0,83632.0,0.065]
[1744785737118,0.1527795,83633.0,83632.0,0.065]
[1744785737319,0.1528595,83633.0,83632.0,0.065]
[1744785738320,8e-05,83633.0,83632.0,0.184581]
[1744785738622,0.0597848,83640.0,83639.0,0.119571]
[1744785738829,0.1793515,83644.0,83643.0,0.1195652]
[1744785739226,0.1793515,83644.0,83643.0,0.1802652]
[1744785739729,0.2391355,83644.0,83643.0,0.1802652]
[1744785739930,0.2411355,83644.0,83643.0,0.1802652]
[1744785741024,0.2401355,83644.0,83643.0,0.1802652]
[1744785742517,0.2391355,83644.0,83643.0,0.1802652]
[1744785742722,0.2401355,83644.0,83643.0,0.1802652]
[1744785747030,0.001,83644.0,83643.0,0.1802652]
[1744785747240,0.0597721,83658.0,83651.0,0.1195538]
[1744785747533,0.3608,83661.0,83651.0,0.2017538]
[1744785747534,0.00014581,83654.0,83651.0,0.2017538]
[1744785747733,0.1195468,83656.0,83651.0,0.2017538]
[1744785747934,0.36088,83652.0,83651.0,0.2017538]
[1744785748122,0.1195468,83656.0,83655.0,0.1195481]
[1744785748729,0.1195468,83656.0,83655.0,0.1823481]
[1744785750026,0.1195468,83656.0,83655.0,0.1863481]
[1744785750635,0.1195468,83656.0,83655.0,0.1853481]
[1744785750827,0.1195468,83656.0,83655.0,0.1863481]
[1744785751533,0.1195468,83656.0,83655.0,0.1853481]
[1744785751832,0.1195468,83656.0,83655.0,0.1873481]
[1744785752927,0.1195468,83656.0,83655.0,0.1843481]
[1744785753121,0.1195468,83656.0,83655.0,0.1883481]
[1744785756440,0.00010801,83660.0,83659.0,0.1195424]
[1744785756739,0.1793043,83667.0,83666.0,0.2390588]
[1744785757537,0.1793043,83667.0,83666.0,0.3021588]
[1744785757936,0.1793043,83667.0,83666.0,0.31391211]
[1744785759336,0.1793043,83667.0,83666.0,0.31491211]
[1744785759636,0.1793043,83667.0,83666.0,0.3031588]
[1744785759824,0.1793043,83667.0,83666.0,0.3021588]
[1744785760030,0.1793043,83667.0,83666.0,0.1836307]
[1744785760338,0.1793043,83667.0,83666.0,0.001]
[1744785760539,0.1793043,83667.0,83666.0,0.0315]
[1744785761036,0.2102043,83667.0,83666.0,0.0315]
[1744785763141,0.2102043,83667.0,83666.0,0.0305]
[1744785763738,0.2102043,83667.0,83666.0,0.1500324]
[1744785764138,0.2102043,83667.0,83666.0,0.1804324]
[1744785765344,0.00010801,83669.0,83668.0,0.1195295]
[1744785765842,0.00010801,83669.0,83668.0,0.1799295]
[1744785766242,0.1525274,83670.0,83669.0,0.1195281]
[1744785766736,0.1525274,83670.0,83669.0,0.1799281]
[1744785767136,0.00010801,83675.0,83674.0,0.1195209]
[1744785767331,0.00010801,83675.0,83674.0,0.1495209]
[1744785767641,0.1792708,83681.0,83680.0,0.1195109]
[1744785767832,0.2427708,83681.0,83680.0,0.4803109]
[1744785768032,0.2099708,83681.0,83680.0,0.4803109]
[1744785768434,0.2099708,83681.0,83680.0,0.5443109]
[1744785769142,0.0904561,83681.0,83680.0,0.5443109]
[1744785769339,0.0904561,83681.0,83680.0,0.55625312]
[1744785769541,0.1225561,83681.0,83680.0,0.55625312]
[1744785770634,0.1225561,83681.0,83680.0,0.57207986]
[1744785771038,0.1225561,83681.0,83680.0,0.56013764]
[1744785771241,0.1225561,83681.0,83680.0,0.5443109]
[1744785771442,0.1225561,83681.0,83680.0,0.55347751]
[1744785773538,0.1225561,83681.0,83680.0,0.07316661]
[1744785773844,0.1539561,83681.0,83680.0,0.19267901]
[1744785774248,0.0628,83681.0,83680.0,0.19267901]
[1744785774843,0.1823909,83681.0,83680.0,0.19267901]
[1744785777144,0.00108,83681.0,83680.0,0.20867873]
[1744785777944,0.1205909,83681.0,83680.0,0.08916633]
[1744785778249,0.1818909,83681.0,83680.0,0.17567873]
[1744785778449,0.1818909,83681.0,83680.0,0.15967901]
[1744785778745,0.1818909,83681.0,83680.0,0.19217901]
[1744785778945,0.1516909,83681.0,83680.0,0.19217901]
[1744785781241,0.1516909,83681.0,83680.0,0.07266661]
[1744785781549,0.1516909,83681.0,83680.0,0.19217901]
[1744785781850,0.06468,83681.0,83680.0,0.19217901]
[1744785782144,0.06468,83681.0,83680.0,0.15967901]
[1744785782545,0.0597576,83678.0,83674.0,0.0318]
[1744785782752,0.1813174,83677.0,83675.0,0.0305]
[1744785783242,0.0618,83677.0,83676.0,0.1195181]
[1744785783441,0.00108,83681.0,83680.0,0.1195124]
[1744785783638,0.005,83682.0,83681.0,0.1195109]
[1744785784239,0.005,83682.0,83681.0,0.1513109]
[1744785784644,0.1245095,83682.0,83681.0,0.1513109]
[1744785784841,0.1547095,83682.0,83681.0,0.1842109]
[1744785785754,0.0362,83682.0,83681.0,0.1842109]
[1744785789546,0.006,83682.0,83681.0,0.1842109]
[1744785790464,0.00608,83682.0,83681.0,0.20019911]
[1744785793256,0.00608,83682.0,83681.0,0.1842109]
[1744785795463,0.00608,83682.0,83681.0,0.20009069]
[1744785798563,0.1255895,83682.0,83681.0,0.08057979]
[1744785798958,0.1872895,83682.0,83681.0,0.0647]
[1744785799359,0.1872895,83682.0,83681.0,0.0329]
[1744785799761,0.1195181,83676.0,83675.0,0.21065713]
[1744785799964,0.1195181,83676.0,83675.0,0.09113853]
[1744785800162,0.1817181,83676.0,83675.0,0.09113853]
[1744785800360,0.1817181,83676.0,83675.0,0.22649746]
[1744785800768,0.032,83676.0,83675.0,0.22649746]
[1744785801162,0.1515181,83676.0,83675.0,0.28979746]
[1744785801872,0.1525181,83676.0,83675.0,0.28979746]
[1744785802065,0.033,83676.0,83675.0,0.28979746]
[1744785802258,0.1525181,83676.0,83675.0,0.28979746]
[1744785802464,0.001,83676.0,83675.0,0.28979746]
[1744785802670,0.001,83676.0,83675.0,0.32179746]
[1744785802874,0.00108,83676.0,83675.0,0.32179746]
[1744785805965,0.00108,83676.0,83675.0,0.68259746]
[1744785807870,0.1205981,83676.0,83675.0,0.68259746]
[1744785808069,0.1205981,83676.0,83675.0,0.28979746]
[1744785808271,0.1205981,83676.0,83675.0,0.07913943]
[1744785808573,0.2175981,83676.0,83675.0,0.04823943]
[1744785808767,0.2175981,83676.0,83675.0,0.0324]
[1744785811967,0.0597619,83672.0,83644.0,0.06157495]
[1744785812268,0.0597637,83670.0,83669.0,0.0318]
[1744785812673,0.1215637,83670.0,83669.0,0.0318]
[1744785813069,0.1215637,83670.0,83669.0,0.1513281]
[1744785813267,0.1215637,83670.0,83669.0,0.0318]
[1744785813973,0.059764,83669.0,83666.0,0.00017937]
[1744785814172,0.1195309,83667.0,83666.0,0.00017937]
[1744785814368,0.1195538,83651.0,83650.0,0.033]